[Event "January 9 Early 2024"]
[Site "https://www.chess.com"]
[Date "2024.01.11"]
[Round "4"]
[White "Bonin, Jay"]
[Black "Senft, Sean"]
[Result "1-0"]
[Board "26"]
[TimeControl "180+1"]
[WhiteFideId "2000644"]
[BlackFideId "2044960"]
[WhiteElo "2336"]
[BlackElo "2540"]
[WhiteTeam "USA"]
[BlackTeam "USA"]
[WhiteClock "0:01:18"]
[BlackClock "0:01:53"]

1. d4 {[%clk 0:02:59]}  d5 {[%clk 0:02:59]} 2. Nf3 {[%clk 0:02:58]}  Nf6 {[%clk 0:02:59]} 3. c4 {[%clk 0:02:57]}  c6 {[%clk 0:03:00]} 4. Qb3 {[%clk 0:02:56]}  g6 {[%clk 0:02:57]} 5. Nc3 {[%clk 0:02:54]}  Bg7 {[%clk 0:02:57]} 6. Bf4 {[%clk 0:02:52]}  O-O {[%clk 0:02:57]} 7. e3 {[%clk 0:02:52]}  Ne4 {[%clk 0:02:53]} 8. cxd5 {[%clk 0:02:49]}  Nxc3 {[%clk 0:02:52]} 9. bxc3 {[%clk 0:02:39]}  cxd5 {[%clk 0:02:51]} 10. Bd3 {[%clk 0:02:31]}  Nc6 {[%clk 0:02:51]} 11. O-O {[%clk 0:02:24]}  a6 {[%clk 0:02:51]} 12. Rab1 {[%clk 0:02:15]}  b5 {[%clk 0:02:51]} 13. a4 {[%clk 0:02:14]}  Na5 {[%clk 0:02:48]} 14. Qb4 {[%clk 0:02:11]}  Bg4 {[%clk 0:02:34]} 15. Ne5 {[%clk 0:02:06]}  Bf5 {[%clk 0:02:34]} 16. Bxf5 {[%clk 0:02:03]}  gxf5 {[%clk 0:02:35]} 17. axb5 {[%clk 0:02:02]}  axb5 {[%clk 0:02:36]} 18. Qxb5 {[%clk 0:02:01]}  Bxe5 {[%clk 0:02:33]} 19. Bxe5 {[%clk 0:01:59]}  Nc4 {[%clk 0:02:34]} 20. Ra1 {[%clk 0:01:52]}  Rb8 {[%clk 0:02:30]} 21. Bxb8 {[%clk 0:01:49]}  Qxb8 {[%clk 0:02:29]} 22. Qxb8 {[%clk 0:01:48]}  Rxb8 {[%clk 0:02:30]} 23. Rfb1 {[%clk 0:01:46]}  Rc8 {[%clk 0:02:30]} 24. Ra7 {[%clk 0:01:43]}  Nd2 {[%clk 0:02:25]} 25. Rbb7 {[%clk 0:01:40]}  Rxc3 {[%clk 0:02:23]} 26. g3 {[%clk 0:01:38]}  e5 {[%clk 0:02:06]} 27. Rxf7 {[%clk 0:01:28]}  Nf3+ {[%clk 0:01:57]} 28. Kg2 {[%clk 0:01:27]}  e4 {[%clk 0:01:56]} 29. Rg7+ {[%clk 0:01:24]}  Kf8 {[%clk 0:01:57]} 30. Rxh7 {[%clk 0:01:22]}  Kg8 {[%clk 0:01:55]} 31. Rhb7 {[%clk 0:01:20]}  Rc8 {[%clk 0:01:53]} 32. h4 {[%clk 0:01:18]} 1-0

[Event "January 9 Early 2024"]
[Site "https://www.chess.com"]
[Date "2024.01.11"]
[Round "4"]
[White "Haring, Filip"]
[Black "Karavade, Eesha"]
[Result "1-0"]
[Board "28"]
[TimeControl "180+1"]
[WhiteFideId "14933080"]
[BlackFideId "5012600"]
[WhiteElo "2707"]
[BlackElo "2486"]
[WhiteTeam "SVK"]
[BlackTeam "IND"]
[WhiteClock "0:01:23"]
[BlackClock "0:01:27"]

1. Nf3 {[%clk 0:03:00]}  d5 {[%clk 0:02:57]} 2. c4 {[%clk 0:03:01]}  d4 {[%clk 0:02:51]} 3. b4 {[%clk 0:03:01]}  f6 {[%clk 0:02:48]} 4. e3 {[%clk 0:03:01]}  e5 {[%clk 0:02:42]} 5. c5 {[%clk 0:03:01]}  a5 {[%clk 0:02:40]} 6. Qa4+ {[%clk 0:02:59]}  Bd7 {[%clk 0:02:37]} 7. b5 {[%clk 0:02:59]}  Bxc5 {[%clk 0:02:34]} 8. Bc4 {[%clk 0:03:00]}  Nh6 {[%clk 0:02:26]} 9. exd4 {[%clk 0:02:53]}  exd4 {[%clk 0:02:26]} 10. O-O {[%clk 0:02:53]}  Nf7 {[%clk 0:02:23]} 11. Bxf7+ {[%clk 0:02:50]}  Kxf7 {[%clk 0:02:23]} 12. Qc4+ {[%clk 0:02:50]}  Be6 {[%clk 0:02:20]} 13. Qxc5 {[%clk 0:02:50]}  d3 {[%clk 0:02:14]} 14. Nc3 {[%clk 0:02:44]}  Nd7 {[%clk 0:02:14]} 15. Qe3 {[%clk 0:02:39]}  Nb6 {[%clk 0:02:13]} 16. Qf4 {[%clk 0:01:59]}  Re8 {[%clk 0:02:02]} 17. Ng5+ {[%clk 0:01:48]}  Kg8 {[%clk 0:02:02]} 18. Nxe6 {[%clk 0:01:48]}  Rxe6 {[%clk 0:02:02]} 19. Ba3 {[%clk 0:01:47]}  Qd7 {[%clk 0:01:55]} 20. Rae1 {[%clk 0:01:42]}  Rae8 {[%clk 0:01:54]} 21. Re3 {[%clk 0:01:34]}  Rxe3 {[%clk 0:01:39]} 22. fxe3 {[%clk 0:01:33]}  h6 {[%clk 0:01:31]} 23. Bc5 {[%clk 0:01:30]}  Re5 {[%clk 0:01:27]} 24. Bxb6 {[%clk 0:01:24]}  cxb6 {[%clk 0:01:27]} 25. a4 {[%clk 0:01:23]} 1-0

[Event "January 9 Early 2024"]
[Site "https://www.chess.com"]
[Date "2024.01.11"]
[Round "4"]
[White "Domingo Nunez, Alejandro"]
[Black "Gutierrez Olivares, Daniel"]
[Result "1-0"]
[Board "29"]
[TimeControl "180+1"]
[WhiteFideId "22245561"]
[BlackFideId "2264005"]
[WhiteElo "2698"]
[BlackElo "2471"]
[WhiteTeam "ESP"]
[BlackTeam "ESP"]
[WhiteClock "0:01:45"]
[BlackClock "0:00:46"]

1. Nf3 {[%clk 0:03:00]}  e6 {[%clk 0:02:56]} 2. e4 {[%clk 0:02:56]}  d5 {[%clk 0:02:54]} 3. Nc3 {[%clk 0:02:56]}  Nf6 {[%clk 0:02:50]} 4. e5 {[%clk 0:02:57]}  Nfd7 {[%clk 0:02:51]} 5. d4 {[%clk 0:02:57]}  c5 {[%clk 0:02:52]} 6. dxc5 {[%clk 0:02:58]}  Nc6 {[%clk 0:02:52]} 7. Bf4 {[%clk 0:02:59]}  Nxc5 {[%clk 0:02:52]} 8. Bd3 {[%clk 0:02:58]}  Be7 {[%clk 0:02:52]} 9. h4 {[%clk 0:02:58]}  b6 {[%clk 0:02:42]} 10. h5 {[%clk 0:02:57]}  Nb4 {[%clk 0:02:31]} 11. Rh3 {[%clk 0:02:48]}  Nbxd3+ {[%clk 0:02:25]} 12. cxd3 {[%clk 0:02:49]}  Ba6 {[%clk 0:02:26]} 13. Nd4 {[%clk 0:02:49]}  Bg5 {[%clk 0:02:01]} 14. Nc6 {[%clk 0:02:11]}  Qd7 {[%clk 0:01:52]} 15. Bxg5 {[%clk 0:02:09]}  Qxc6 {[%clk 0:01:51]} 16. Rc1 {[%clk 0:02:10]}  d4 {[%clk 0:01:08]} 17. Ne4 {[%clk 0:02:09]}  Qd5 {[%clk 0:01:07]} 18. Nxc5 {[%clk 0:02:00]}  Qxe5+ {[%clk 0:00:50]} 19. Ne4 {[%clk 0:02:00]}  f5 {[%clk 0:00:47]} 20. Qa4+ {[%clk 0:01:45]}  Bb5 {[%clk 0:00:46]} 21. Qxb5+ {[%clk 0:01:45]} 1-0

[Event "January 9 Early 2024"]
[Site "https://www.chess.com"]
[Date "2024.01.11"]
[Round "4"]
[White "Panda Sambit"]
[Black "Parra Gomez, Adrian"]
[Result "0-1"]
[Board "31"]
[TimeControl "180+1"]
[WhiteFideId "25091794"]
[BlackFideId "3513106"]
[WhiteElo "2566"]
[BlackElo "2449"]
[WhiteTeam "IND"]
[BlackTeam "CUB"]
[WhiteClock "0:01:27"]
[BlackClock "0:01:13"]

1. d4 {[%clk 0:03:00]}  d5 {[%clk 0:02:20]} 2. c4 {[%clk 0:02:59]}  e6 {[%clk 0:02:20]} 3. Nc3 {[%clk 0:02:59]}  Nf6 {[%clk 0:02:19]} 4. Nf3 {[%clk 0:02:59]}  c5 {[%clk 0:02:18]} 5. cxd5 {[%clk 0:02:59]}  Nxd5 {[%clk 0:02:19]} 6. e3 {[%clk 0:02:56]}  cxd4 {[%clk 0:02:12]} 7. exd4 {[%clk 0:02:56]}  Nxc3 {[%clk 0:02:12]} 8. bxc3 {[%clk 0:02:55]}  Qc7 {[%clk 0:02:13]} 9. Bd2 {[%clk 0:02:52]}  Nd7 {[%clk 0:02:13]} 10. Bd3 {[%clk 0:02:52]}  Bd6 {[%clk 0:02:11]} 11. O-O {[%clk 0:02:51]}  b6 {[%clk 0:02:11]} 12. c4 {[%clk 0:02:49]}  Bb7 {[%clk 0:02:10]} 13. Qe2 {[%clk 0:02:49]}  O-O {[%clk 0:01:58]} 14. h3 {[%clk 0:02:49]}  Rfd8 {[%clk 0:01:55]} 15. Rac1 {[%clk 0:02:49]}  Bf4 {[%clk 0:01:52]} 16. Bc3 {[%clk 0:02:47]}  Bxc1 {[%clk 0:01:49]} 17. Rxc1 {[%clk 0:02:45]}  h6 {[%clk 0:01:42]} 18. d5 {[%clk 0:02:29]}  exd5 {[%clk 0:01:40]} 19. Nh4 {[%clk 0:02:29]}  Qf4 {[%clk 0:01:37]} 20. Re1 {[%clk 0:01:39]}  Qxh4 {[%clk 0:01:35]} 21. cxd5 {[%clk 0:01:33]}  Bxd5 {[%clk 0:01:33]} 22. Bb1 {[%clk 0:01:33]}  Nf8 {[%clk 0:01:21]} 23. Ba1 {[%clk 0:01:31]}  Qg5 {[%clk 0:01:19]} 24. f3 {[%clk 0:01:28]}  Be6 {[%clk 0:01:15]} 25. Qb2 {[%clk 0:01:27]}  Rd2 {[%clk 0:01:13]} 0-1

[Event "January 9 Early 2024"]
[Site "https://www.chess.com"]
[Date "2024.01.11"]
[Round "4"]
[White "Madaminov, Mukhiddin"]
[Black "Trost, Edvin"]
[Result "0-1"]
[Board "35"]
[TimeControl "180+1"]
[WhiteFideId "14210703"]
[BlackFideId "1729519"]
[WhiteElo "2846"]
[BlackElo "2628"]
[WhiteTeam "UZB"]
[BlackTeam "SWE"]
[WhiteClock "0:00:45"]
[BlackClock "0:02:03"]

1. e4 {[%clk 0:03:00]}  e6 {[%clk 0:02:54]} 2. d4 {[%clk 0:02:55]}  d5 {[%clk 0:02:55]} 3. exd5 {[%clk 0:02:55]}  exd5 {[%clk 0:02:56]} 4. Nf3 {[%clk 0:02:56]}  Nc6 {[%clk 0:02:54]} 5. Nc3 {[%clk 0:02:55]}  Bb4 {[%clk 0:02:52]} 6. Bd3 {[%clk 0:02:54]}  Nge7 {[%clk 0:02:41]} 7. O-O {[%clk 0:02:53]}  Bg4 {[%clk 0:02:42]} 8. a3 {[%clk 0:02:30]}  Bxc3 {[%clk 0:02:41]} 9. bxc3 {[%clk 0:02:30]}  f6 {[%clk 0:02:38]} 10. h3 {[%clk 0:02:29]}  Bf5 {[%clk 0:02:37]} 11. Bxf5 {[%clk 0:02:02]}  Nxf5 {[%clk 0:02:38]} 12. Qd3 {[%clk 0:01:59]}  Qd7 {[%clk 0:02:37]} 13. Re1+ {[%clk 0:01:50]}  Kf7 {[%clk 0:02:37]} 14. c4 {[%clk 0:01:36]}  Rhe8 {[%clk 0:02:35]} 15. Rxe8 {[%clk 0:01:35]}  Rxe8 {[%clk 0:02:34]} 16. cxd5 {[%clk 0:01:36]}  Qxd5 {[%clk 0:02:34]} 17. c4 {[%clk 0:01:36]}  Qe4 {[%clk 0:02:32]} 18. Qxe4 {[%clk 0:01:17]}  Rxe4 {[%clk 0:02:33]} 19. Bb2 {[%clk 0:01:17]}  Ncxd4 {[%clk 0:02:07]} 20. Nxd4 {[%clk 0:01:18]}  Nxd4 {[%clk 0:02:08]} 21. f3 {[%clk 0:01:15]}  Ne2+ {[%clk 0:02:08]} 22. Kf2 {[%clk 0:01:15]}  Rxc4 {[%clk 0:02:08]} 23. Bxf6 {[%clk 0:01:08]}  Kxf6 {[%clk 0:02:07]} 24. Kxe2 {[%clk 0:01:08]}  Rc2+ {[%clk 0:02:08]} 25. Kf1 {[%clk 0:01:07]}  b5 {[%clk 0:02:07]} 26. Rb1 {[%clk 0:01:00]}  a6 {[%clk 0:02:06]} 27. a4 {[%clk 0:01:00]}  bxa4 {[%clk 0:02:06]} 28. Rb4 {[%clk 0:01:00]}  a3 {[%clk 0:02:06]} 29. Rf4+ {[%clk 0:00:55]}  Kg5 {[%clk 0:02:02]} 30. Rg4+ {[%clk 0:00:53]}  Kf5 {[%clk 0:02:02]} 31. Ra4 {[%clk 0:00:45]}  a2 {[%clk 0:02:03]} 0-1

[Event "January 9 Early 2024"]
[Site "https://www.chess.com"]
[Date "2024.01.11"]
[Round "4"]
[White "Wafa, Hamed"]
[Black "Sanhueza, Cristian"]
[Result "0-1"]
[Board "41"]
[TimeControl "180+1"]
[WhiteFideId "10628452"]
[BlackFideId "116815"]
[WhiteElo "2814"]
[BlackElo "2617"]
[WhiteTeam "EGY"]
[BlackTeam "ARG"]
[WhiteClock "0:02:27"]
[BlackClock "0:01:55"]

1. e4 {[%clk 0:03:00]}  e5 {[%clk 0:03:00]} 2. Nf3 {[%clk 0:03:01]}  Nc6 {[%clk 0:03:00]} 3. Bb5 {[%clk 0:03:00]}  a6 {[%clk 0:03:00]} 4. Bxc6 {[%clk 0:02:57]}  dxc6 {[%clk 0:03:01]} 5. O-O {[%clk 0:02:57]}  Bg4 {[%clk 0:03:00]} 6. h3 {[%clk 0:02:52]}  h5 {[%clk 0:03:00]} 7. d3 {[%clk 0:02:53]}  Qf6 {[%clk 0:03:00]} 8. Be3 {[%clk 0:02:52]}  Bxf3 {[%clk 0:03:00]} 9. Qxf3 {[%clk 0:02:53]}  Qxf3 {[%clk 0:03:00]} 10. gxf3 {[%clk 0:02:54]}  Bd6 {[%clk 0:03:01]} 11. Nd2 {[%clk 0:02:53]}  Ne7 {[%clk 0:02:58]} 12. a4 {[%clk 0:02:54]}  Ng6 {[%clk 0:02:47]} 13. Rfb1 {[%clk 0:02:52]}  c5 {[%clk 0:02:32]} 14. a5 {[%clk 0:02:47]}  O-O-O {[%clk 0:02:31]} 15. Kf1 {[%clk 0:02:46]}  Nf8 {[%clk 0:02:28]} 16. Nb3 {[%clk 0:02:39]}  Ne6 {[%clk 0:02:27]} 17. Ra4 {[%clk 0:02:38]}  g5 {[%clk 0:02:11]} 18. Ke2 {[%clk 0:02:33]}  Rdg8 {[%clk 0:01:57]} 19. c3 {[%clk 0:02:27]}  g4 {[%clk 0:01:55]} 0-1

[Event "January 9 Early 2024"]
[Site "https://www.chess.com"]
[Date "2024.01.11"]
[Round "4"]
[White "Petrukhina, Olga"]
[Black "Joubert, Dantelle"]
[Result "1-0"]
[Board "42"]
[TimeControl "180+1"]
[WhiteFideId "13703935"]
[BlackFideId "14310813"]
[WhiteElo "2295"]
[BlackElo "2054"]
[WhiteTeam "KAZ"]
[BlackTeam "RSA"]
[WhiteClock "0:01:11"]
[BlackClock "0:01:00"]

1. d4 {[%clk 0:03:00]}  d5 {[%clk 0:02:41]} 2. c4 {[%clk 0:03:00]}  c6 {[%clk 0:02:41]} 3. Nf3 {[%clk 0:02:59]}  Nf6 {[%clk 0:02:40]} 4. Nc3 {[%clk 0:02:58]}  e6 {[%clk 0:02:40]} 5. g3 {[%clk 0:02:57]}  Nbd7 {[%clk 0:02:38]} 6. Bg2 {[%clk 0:02:58]}  dxc4 {[%clk 0:02:36]} 7. e4 {[%clk 0:02:53]}  Bb4 {[%clk 0:02:28]} 8. e5 {[%clk 0:02:46]}  Nd5 {[%clk 0:02:24]} 9. Bd2 {[%clk 0:02:46]}  O-O {[%clk 0:02:21]} 10. O-O {[%clk 0:02:43]}  c5 {[%clk 0:02:20]} 11. Qe2 {[%clk 0:02:29]}  Bxc3 {[%clk 0:01:58]} 12. bxc3 {[%clk 0:02:24]}  cxd4 {[%clk 0:01:41]} 13. Nxd4 {[%clk 0:02:21]}  N7b6 {[%clk 0:01:38]} 14. Be4 {[%clk 0:02:17]}  Bd7 {[%clk 0:01:36]} 15. Qh5 {[%clk 0:02:10]}  g6 {[%clk 0:01:32]} 16. Qh6 {[%clk 0:02:06]}  Qc7 {[%clk 0:01:31]} 17. Rae1 {[%clk 0:01:34]}  f6 {[%clk 0:01:09]} 18. Bxg6 {[%clk 0:01:18]}  hxg6 {[%clk 0:01:09]} 19. Qxg6+ {[%clk 0:01:18]}  Kh8 {[%clk 0:01:00]} 20. Re4 {[%clk 0:01:11]} 1-0

[Event "January 9 Early 2024"]
[Site "https://www.chess.com"]
[Date "2024.01.11"]
[Round "4"]
[White "Murthy, Pappu"]
[Black "Prudnykova, Olga"]
[Result "0-1"]
[Board "43"]
[TimeControl "180+1"]
[WhiteFideId "2013401"]
[BlackFideId "14121093"]
[WhiteElo "1897"]
[BlackElo "2272"]
[WhiteTeam "USA"]
[BlackTeam "ISL"]
[WhiteClock "0:00:04"]
[BlackClock "0:01:49"]

1. e4 {[%clk 0:03:00]}  c5 {[%clk 0:02:59]} 2. Nf3 {[%clk 0:02:59]}  Nf6 {[%clk 0:02:59]} 3. Nc3 {[%clk 0:02:56]}  e6 {[%clk 0:02:59]} 4. d4 {[%clk 0:02:56]}  cxd4 {[%clk 0:02:58]} 5. Nxd4 {[%clk 0:02:55]}  Nc6 {[%clk 0:02:57]} 6. Ndb5 {[%clk 0:02:54]}  Bc5 {[%clk 0:02:55]} 7. Nd6+ {[%clk 0:02:40]}  Ke7 {[%clk 0:02:55]} 8. Bf4 {[%clk 0:02:13]}  e5 {[%clk 0:02:55]} 9. Nf5+ {[%clk 0:02:05]}  Kf8 {[%clk 0:02:55]} 10. Bg5 {[%clk 0:01:58]}  d6 {[%clk 0:02:54]} 11. Nd5 {[%clk 0:01:54]}  Bxf2+ {[%clk 0:02:25]} 12. Ke2 {[%clk 0:01:30]}  Bxf5 {[%clk 0:02:24]} 13. Bxf6 {[%clk 0:01:27]}  gxf6 {[%clk 0:02:20]} 14. exf5 {[%clk 0:01:14]}  Bc5 {[%clk 0:02:15]} 15. c3 {[%clk 0:01:00]}  Ne7 {[%clk 0:02:01]} 16. Nxe7 {[%clk 0:00:26]}  Qxe7 {[%clk 0:02:01]} 17. g3 {[%clk 0:00:24]}  Qd7 {[%clk 0:01:56]} 18. Qd3 {[%clk 0:00:20]}  e4 {[%clk 0:01:52]} 19. Qd5 {[%clk 0:00:20]}  Qb5+ {[%clk 0:01:50]} 20. Ke1 {[%clk 0:00:06]}  Bf2+ {[%clk 0:01:48]} 21. Kxf2 {[%clk 0:00:04]}  Qxd5 {[%clk 0:01:49]} 0-1

[Event "January 9 Early 2024"]
[Site "https://www.chess.com"]
[Date "2024.01.11"]
[Round "4"]
[White "Krishnan, Ritvik"]
[Black "Sofronie, Claudia-Ramona"]
[Result "1-0"]
[Board "46"]
[TimeControl "180+1"]
[WhiteFideId "45055297"]
[BlackFideId "1205722"]
[WhiteElo "2493"]
[BlackElo "2273"]
[WhiteTeam "IND"]
[BlackTeam "ROU"]
[WhiteClock "0:00:57"]
[BlackClock "0:01:21"]

1. d4 {[%clk 0:03:00]}  e6 {[%clk 0:02:58]} 2. c4 {[%clk 0:03:00]}  f5 {[%clk 0:02:57]} 3. g3 {[%clk 0:02:55]}  Nf6 {[%clk 0:02:55]} 4. Nf3 {[%clk 0:02:56]}  b6 {[%clk 0:02:55]} 5. Bg2 {[%clk 0:02:56]}  Bb7 {[%clk 0:02:55]} 6. O-O {[%clk 0:02:57]}  Be7 {[%clk 0:02:55]} 7. Nc3 {[%clk 0:02:56]}  O-O {[%clk 0:02:55]} 8. d5 {[%clk 0:02:55]}  Bd6 {[%clk 0:02:52]} 9. Bd2 {[%clk 0:02:45]}  e5 {[%clk 0:02:50]} 10. e4 {[%clk 0:02:44]}  fxe4 {[%clk 0:02:44]} 11. Ng5 {[%clk 0:02:45]}  a5 {[%clk 0:02:42]} 12. Ngxe4 {[%clk 0:02:38]}  Qe7 {[%clk 0:02:42]} 13. Nxd6 {[%clk 0:02:35]}  cxd6 {[%clk 0:02:41]} 14. Be3 {[%clk 0:02:34]}  Na6 {[%clk 0:02:31]} 15. Bxb6 {[%clk 0:02:32]}  Qf7 {[%clk 0:02:20]} 16. Nb5 {[%clk 0:02:30]}  Qe7 {[%clk 0:02:18]} 17. c5 {[%clk 0:02:26]}  Ne8 {[%clk 0:02:16]} 18. c6 {[%clk 0:02:20]}  Bc8 {[%clk 0:02:13]} 19. Bxa5 {[%clk 0:01:50]}  dxc6 {[%clk 0:02:12]} 20. dxc6 {[%clk 0:01:51]}  Be6 {[%clk 0:02:12]} 21. Rc1 {[%clk 0:01:48]}  Rc8 {[%clk 0:01:59]} 22. a3 {[%clk 0:01:25]}  Nc5 {[%clk 0:01:45]} 23. Nxd6 {[%clk 0:01:13]}  Nxd6 {[%clk 0:01:35]} 24. Rxc5 {[%clk 0:01:12]}  e4 {[%clk 0:01:35]} 25. Re5 {[%clk 0:01:09]}  Nc4 {[%clk 0:01:30]} 26. Rxe4 {[%clk 0:01:00]}  Nxa5 {[%clk 0:01:29]} 27. Rxe6 {[%clk 0:01:00]}  Qa7 {[%clk 0:01:22]} 28. Qd5 {[%clk 0:00:58]}  Kh8 {[%clk 0:01:21]} 29. b4 {[%clk 0:00:57]} 1-0

[Event "January 9 Early 2024"]
[Site "https://www.chess.com"]
[Date "2024.01.11"]
[Round "4"]
[White "Fier, Alexandr"]
[Black "Alinasab, Mobina"]
[Result "1-0"]
[Board "48"]
[TimeControl "180+1"]
[WhiteFideId "2107139"]
[BlackFideId "12528897"]
[WhiteElo "2740"]
[BlackElo "2540"]
[WhiteTeam "BRA"]
[BlackTeam "IRI"]
[WhiteClock "0:02:11"]
[BlackClock "0:00:03"]

1. e4 {[%clk 0:03:00]}  c5 {[%clk 0:02:58]} 2. Nf3 {[%clk 0:03:00]}  d6 {[%clk 0:02:56]} 3. b4 {[%clk 0:03:01]}  cxb4 {[%clk 0:02:54]} 4. a3 {[%clk 0:03:02]}  bxa3 {[%clk 0:02:44]} 5. d4 {[%clk 0:03:02]}  g6 {[%clk 0:02:26]} 6. Bc4 {[%clk 0:03:00]}  Bg7 {[%clk 0:02:25]} 7. c3 {[%clk 0:02:59]}  Nf6 {[%clk 0:02:25]} 8. Nbd2 {[%clk 0:02:58]}  O-O {[%clk 0:02:22]} 9. h4 {[%clk 0:02:58]}  Bg4 {[%clk 0:02:21]} 10. Qb3 {[%clk 0:02:57]}  Bxf3 {[%clk 0:02:01]} 11. Nxf3 {[%clk 0:02:54]}  Nc6 {[%clk 0:01:55]} 12. Bd3 {[%clk 0:02:50]}  Na5 {[%clk 0:01:32]} 13. Qxa3 {[%clk 0:02:49]}  b6 {[%clk 0:01:32]} 14. Bg5 {[%clk 0:02:47]}  Rc8 {[%clk 0:01:26]} 15. Bxf6 {[%clk 0:02:40]}  Bxf6 {[%clk 0:01:23]} 16. h5 {[%clk 0:02:41]}  Kg7 {[%clk 0:01:11]} 17. Kd2 {[%clk 0:02:35]}  e6 {[%clk 0:00:53]} 18. Rh3 {[%clk 0:02:34]}  h6 {[%clk 0:00:50]} 19. hxg6 {[%clk 0:02:34]}  fxg6 {[%clk 0:00:51]} 20. Rah1 {[%clk 0:02:34]}  Rh8 {[%clk 0:00:50]} 21. Rg3 {[%clk 0:02:33]}  g5 {[%clk 0:00:44]} 22. Qa2 {[%clk 0:02:30]}  Qd7 {[%clk 0:00:39]} 23. Nh2 {[%clk 0:02:29]}  Kf7 {[%clk 0:00:06]} 24. Ng4 {[%clk 0:02:28]}  Bg7 {[%clk 0:00:05]} 25. Rf3+ {[%clk 0:02:28]}  Ke7 {[%clk 0:00:06]} 26. Qa3 {[%clk 0:02:22]}  Rcf8 {[%clk 0:00:06]} 27. e5 {[%clk 0:02:22]}  Rxf3 {[%clk 0:00:05]} 28. gxf3 {[%clk 0:02:23]}  Rf8 {[%clk 0:00:05]} 29. Nxh6 {[%clk 0:02:20]}  Rxf3 {[%clk 0:00:05]} 30. Ke2 {[%clk 0:02:19]}  Rf8 {[%clk 0:00:05]} 31. Ng4 {[%clk 0:02:16]}  Qc7 {[%clk 0:00:04]} 32. Rh7 {[%clk 0:02:16]}  Rf7 {[%clk 0:00:04]} 33. Bg6 {[%clk 0:02:13]}  Qc4+ {[%clk 0:00:04]} 34. Ke1 {[%clk 0:02:13]}  Ke8 {[%clk 0:00:03]} 35. Rxg7 {[%clk 0:02:11]} 1-0

[Event "January 9 Early 2024"]
[Site "https://www.chess.com"]
[Date "2024.01.11"]
[Round "4"]
[White "Sipila, Vilka"]
[Black "Dyachuk, Artem"]
[Result "0-1"]
[Board "51"]
[TimeControl "180+1"]
[WhiteFideId "505455"]
[BlackFideId "34107924"]
[WhiteElo "2652"]
[BlackElo "2711"]
[WhiteTeam "FIN"]
[BlackTeam "UKR"]
[WhiteClock "0:01:00"]
[BlackClock "0:01:02"]

1. b3 {[%clk 0:03:00]}  e5 {[%clk 0:02:59]} 2. Bb2 {[%clk 0:03:01]}  Nc6 {[%clk 0:02:58]} 3. e3 {[%clk 0:03:01]}  Nf6 {[%clk 0:02:55]} 4. Bb5 {[%clk 0:03:01]}  Bd6 {[%clk 0:02:55]} 5. Na3 {[%clk 0:03:01]}  Na5 {[%clk 0:02:53]} 6. Be2 {[%clk 0:02:58]}  a6 {[%clk 0:02:41]} 7. d3 {[%clk 0:02:58]}  Qe7 {[%clk 0:02:36]} 8. Nb1 {[%clk 0:02:57]}  O-O {[%clk 0:02:35]} 9. Nd2 {[%clk 0:02:56]}  b5 {[%clk 0:02:34]} 10. Ngf3 {[%clk 0:02:55]}  Bb7 {[%clk 0:02:34]} 11. O-O {[%clk 0:02:50]}  Rfe8 {[%clk 0:02:30]} 12. c4 {[%clk 0:02:44]}  c5 {[%clk 0:02:21]} 13. Re1 {[%clk 0:02:35]}  Bc7 {[%clk 0:02:19]} 14. Qc2 {[%clk 0:02:28]}  Rac8 {[%clk 0:02:09]} 15. Ne4 {[%clk 0:02:06]}  Nxe4 {[%clk 0:01:57]} 16. dxe4 {[%clk 0:02:07]}  bxc4 {[%clk 0:01:54]} 17. bxc4 {[%clk 0:01:58]}  d6 {[%clk 0:01:53]} 18. Nd2 {[%clk 0:01:57]}  Nc6 {[%clk 0:01:51]} 19. Bc3 {[%clk 0:01:56]}  Rcd8 {[%clk 0:01:43]} 20. Qa4 {[%clk 0:01:55]}  Qd7 {[%clk 0:01:40]} 21. Rab1 {[%clk 0:01:53]}  Bc8 {[%clk 0:01:38]} 22. h3 {[%clk 0:01:48]}  Nd4 {[%clk 0:01:34]} 23. Bd1 {[%clk 0:01:47]}  Ne6 {[%clk 0:01:30]} 24. Qa3 {[%clk 0:01:43]}  Qe7 {[%clk 0:01:28]} 25. Ba4 {[%clk 0:01:43]}  Rf8 {[%clk 0:01:26]} 26. Bc6 {[%clk 0:01:43]}  Ng5 {[%clk 0:01:24]} 27. Kh2 {[%clk 0:01:30]}  f5 {[%clk 0:01:20]} 28. exf5 {[%clk 0:01:26]}  Bxf5 {[%clk 0:01:21]} 29. e4 {[%clk 0:01:26]}  Bxh3 {[%clk 0:01:14]} 30. f3 {[%clk 0:01:23]}  Bd7 {[%clk 0:01:11]} 31. Bd5+ {[%clk 0:01:19]}  Kh8 {[%clk 0:01:11]} 32. Rb7 {[%clk 0:01:20]}  Ne6 {[%clk 0:01:09]} 33. Rh1 {[%clk 0:01:15]}  Nf4 {[%clk 0:01:03]} 34. Nf1 {[%clk 0:01:01]}  Qh4+ {[%clk 0:01:01]} 35. Kg1 {[%clk 0:01:00]}  Ne2# {[%clk 0:01:02]} 0-1

[Event "January 9 Early 2024"]
[Site "https://www.chess.com"]
[Date "2024.01.11"]
[Round "4"]
[White "Nowak, Lukasz"]
[Black "Blokhin, Sofia"]
[Result "0-1"]
[Board "52"]
[TimeControl "180+1"]
[WhiteFideId "1166760"]
[BlackFideId "4508190"]
[WhiteElo "2000"]
[BlackElo "2290"]
[WhiteTeam "POL"]
[BlackTeam "EST"]
[WhiteClock "0:00:02"]
[BlackClock "0:01:28"]

1. c4 {[%clk 0:03:00]}  c5 {[%clk 0:02:52]} 2. g3 {[%clk 0:02:57]}  Nf6 {[%clk 0:02:51]} 3. Bg2 {[%clk 0:02:57]}  d5 {[%clk 0:02:51]} 4. cxd5 {[%clk 0:02:55]}  Nxd5 {[%clk 0:02:51]} 5. Nf3 {[%clk 0:02:48]}  Nc6 {[%clk 0:02:49]} 6. d4 {[%clk 0:02:43]}  e6 {[%clk 0:02:45]} 7. O-O {[%clk 0:02:38]}  Be7 {[%clk 0:02:42]} 8. e4 {[%clk 0:02:24]}  Nb6 {[%clk 0:02:36]} 9. dxc5 {[%clk 0:01:48]}  Qxd1 {[%clk 0:02:29]} 10. Rxd1 {[%clk 0:01:49]}  Bxc5 {[%clk 0:02:28]} 11. Nbd2 {[%clk 0:01:37]}  O-O {[%clk 0:02:24]} 12. Nb3 {[%clk 0:01:35]}  Be7 {[%clk 0:02:23]} 13. Nfd4 {[%clk 0:01:32]}  Bd7 {[%clk 0:02:11]} 14. Be3 {[%clk 0:01:30]}  Nc4 {[%clk 0:02:09]} 15. Bc1 {[%clk 0:00:58]}  Rfd8 {[%clk 0:01:55]} 16. Bf1 {[%clk 0:00:56]}  Nb6 {[%clk 0:01:49]} 17. Be3 {[%clk 0:00:51]}  Bf6 {[%clk 0:01:44]} 18. f4 {[%clk 0:00:45]}  e5 {[%clk 0:01:35]} 19. Nxc6 {[%clk 0:00:42]}  Bxc6 {[%clk 0:01:34]} 20. Bg2 {[%clk 0:00:32]}  Nc4 {[%clk 0:01:34]} 21. Bf2 {[%clk 0:00:02]}  Nxb2 {[%clk 0:01:28]} 0-1